fUST/lending_fUST_20250620
["ID","MTS","AMOUNT","RATE_DAILY","PERIOD"]
[366656490,1750381833709,-3964.69621,0.00022239,2]
[366656491,1750381833721,-3000.0,0.0002224,2]
[366656492,1750381833735,-3000.0,0.0002225,2]
[366656493,1750381833747,-3000.0,0.0002226,2]
[366656494,1750381833759,-123.93091344,0.0002227,2]
[366656504,1750381838597,-1336.30043752,0.0002227,2]
[366656538,1750381843979,-1539.76864904,0.0002227,2]
[366656539,1750381843991,-3000.0,0.0002228,2]
[366656540,1750381844003,-3000.0,0.0002229,2]
[366656541,1750381844014,-3000.0,0.000223,2]
[366656542,1750381844026,-3000.0,0.0002231,2]
[366656543,1750381844246,-1000.0,0.00022316,6]
[366656544,1750381844267,-460.0,0.00022316,6]
[366656545,1750381844277,-460.0,0.00022316,6]
[366656546,1750381844287,-460.0,0.00022316,6]
[366656547,1750381844297,-460.0,0.00022316,6]
[366656548,1750381844307,-460.0,0.00022316,6]
[366656549,1750381844316,-460.0,0.00022316,6]
[366656550,1750381844325,-2938.76508962,0.0002232,2]
[366656557,1750381846647,-61.23491038,0.0002232,2]
[366656558,1750381846658,-3000.0,0.0002233,2]
[366656559,1750381846668,-2568.48826004,0.0002234,2]
[366656570,1750381864986,3089.0,0.00022,30]
[366656571,1750381937564,162.832345,0.00013699,2]
[366656573,1750382070768,200.0,0.00024343,120]
[366656576,1750382249223,5000.0,0.000202,2]
[366656577,1750382310799,200.0,0.0002376,120]
[366656578,1750382352114,5000.0,0.000202,2]
[366656579,1750382353148,2000.0,0.0002134,120]
[366656581,1750382550773,200.0,0.00024251,120]
[366656587,1750382859592,150.0,0.0001924,2]
[366656591,1750383020210,150.32930165,0.00025144,60]
[366656633,1750383032303,-179.95470013,0.0002126,2]
[366656635,1750383032315,-168.46429335,0.00021475,2]
[366656637,1750383032324,-829.45,0.0002176,2]
[366656639,1750383032334,-160.0,0.00022017,2]
[366656640,1750383032344,-300.0,0.00022197,2]
[366656641,1750383032353,-450.6,0.00022198,6]
[366656643,1750383032363,-460.0,0.00022198,6]
[366656644,1750383032373,-354.56,0.00022198,6]
[366656645,1750383032382,-460.0,0.00022198,6]
[366656646,1750383032392,-300.0,0.00022198,2]
[366656647,1750383032401,-232.297125,0.00022199,6]
[366656648,1750383032410,-301.43630465,0.00022199,6]
[366656649,1750383032420,-460.0,0.00022199,6]
[366656650,1750383032431,-183.41479128,0.00022199,6]
[366656651,1750383032440,-315.52658788,0.00022275,2]
[366656652,1750383032450,-431.51173996,0.0002234,2]
[366656653,1750383032459,-3000.0,0.0002235,2]
[366656654,1750383032469,-2054.91929919,0.0002236,2]
[366656659,1750383038179,-945.08070081,0.0002236,2]
[366656660,1750383038189,-460.0,0.00022368,6]
[366656661,1750383038199,-460.0,0.00022368,6]
[366656662,1750383038208,-1000.0,0.00022369,6]
[366656663,1750383038219,-460.0,0.00022369,6]
[366656664,1750383038228,-306.99738833,0.00022369,6]
[366656665,1750383038238,-460.0,0.00022369,6]
[366656666,1750383038248,-460.0,0.00022369,6]
[366656667,1750383038258,-460.0,0.00022369,6]
[366656668,1750383038268,-460.0,0.00022369,6]
[366656669,1750383038278,-460.0,0.00022369,6]
[366656670,1750383038288,-1972.42,0.00022369,6]
[366656671,1750383038298,-460.0,0.00022369,6]
[366656672,1750383038308,-460.0,0.00022369,6]
[366656673,1750383038318,-460.0,0.00022369,6]
[366656674,1750383038327,-492.9263497,0.00022369,6]
[366656675,1750383038337,-460.0,0.00022369,6]
[366656676,1750383038347,-460.0,0.00022369,6]
[366656677,1750383038358,-460.0,0.00022369,6]
[366656678,1750383038368,-460.0,0.00022369,6]
[366656679,1750383038379,-460.0,0.00022369,6]
[366656680,1750383038391,-460.0,0.00022369,6]
[366656681,1750383038401,-499.56,0.00022369,6]
[366656682,1750383038411,-460.0,0.00022369,6]
[366656683,1750383038421,-460.0,0.00022369,6]
[366656684,1750383038432,-460.0,0.00022369,6]
[366656685,1750383038442,-3000.0,0.0002237,2]
[366656686,1750383038451,-549.90279434,0.00022377,2]
[366656687,1750383038461,-500.0,0.00022377,2]
[366656688,1750383038471,-321.25191096,0.00022377,2]
[366656689,1750383038481,-460.0,0.00022378,6]
[366656690,1750383038493,-168.209,0.00022378,2]
[366656691,1750383038504,-460.0,0.00022378,6]
[366656692,1750383038514,-460.0,0.00022378,6]
[366656693,1750383038524,-460.0,0.00022378,6]
[366656694,1750383038535,-460.0,0.00022378,6]
[366656695,1750383038545,-460.0,0.00022378,6]
[366656696,1750383038555,-3000.0,0.0002238,2]
[366656697,1750383038565,-3000.0,0.0002239,2]
[366656698,1750383038574,-3000.0,0.000224,2]
[366656699,1750383038585,-3000.0,0.0002241,2]
[366656700,1750383038595,-3000.0,0.0002242,2]
[366656701,1750383038605,-3000.0,0.0002243,2]
[366656702,1750383038615,-3000.0,0.0002244,2]
[366656703,1750383038625,-3000.0,0.0002245,2]
[366656704,1750383038636,-3000.0,0.0002246,2]
[366656705,1750383038646,-3000.0,0.0002247,2]
[366656706,1750383038660,-460.0,0.00022473,6]
[366656707,1750383038671,-3000.0,0.0002248,2]
[366656708,1750383038681,-799.42312431,0.0002249,2]
[366656710,1750383040144,-421.16935955,0.0002249,2]
[366656730,1750383042269,163.205719,0.00013699,2]
[366656765,1750383490021,4522.56859924,0.00025145,60]
[366656766,1750383527670,443.6099334,0.0002465,120]
[366656767,1750383541085,656.4337278,0.00021372,120]
[366656771,1750384016335,163.145376,0.00013699,2]
[366656773,1750384232326,-5000.0,0.00020802,2]
[366656774,1750384232336,-512.41218617,0.00021064,2]
[366656775,1750384232347,-243.3808018,0.00021439,2]
[366656776,1750384232357,-850.86,0.00021857,2]
[366656777,1750384232367,-1200.0,0.00021899,2]
[366656778,1750384232515,-2071.50191479,0.000219,6]
[366656779,1750384232526,-163.145376,0.00021918,2]
[366656780,1750384232536,-160.0,0.00022003,2]
[366656781,1750384232547,-2071.5019147,0.00022038,6]
[366656782,1750384232556,-2071.5019147,0.00022176,6]
[366656783,1750384232566,-180.4256161,0.000222,2]
[366656784,1750384232576,-583.2970975,0.000222,2]
[366656785,1750384232588,-160.0,0.0002225,2]
[366656786,1750384232600,-230.0259007,0.0002225,2]
[366656787,1750384232610,-424.78309573,0.0002225,2]
[366656788,1750384232621,-845.93775772,0.0002225,2]
[366656789,1750384232630,-836.1357872,0.0002225,2]
[366656790,1750384232639,-160.0,0.0002225,2]
[366656791,1750384232648,-160.0,0.0002225,2]
[366656792,1750384232658,-300.0,0.00022266,2]
[366656793,1750384232667,-300.0,0.00022266,2]
[366656794,1750384232677,-2071.5019147,0.00022314,7]
[366656795,1750384232687,-300.0,0.00022318,2]
[366656796,1750384232696,-460.0,0.00022368,6]
[366656797,1750384232706,-505.18637061,0.00022368,6]
[366656798,1750384232715,-460.0,0.00022368,6]
[366656799,1750384232724,-486.83035768,0.00022368,6]
[366656800,1750384232734,-476.11743703,0.00022368,6]
[366656801,1750384232743,-478.14058476,0.00022368,6]
[366656802,1750384232753,-454.25560409,0.00022369,6]
[366656803,1750384232762,-575.5,0.00022378,6]
[366656804,1750384232771,-478.95036273,0.00022386,2]
[366656805,1750384232781,-420.70119856,0.00022386,6]
[366656806,1750384232793,-460.0,0.00022387,6]
[366656807,1750384232803,-460.0,0.00022387,6]
[366656808,1750384232812,-460.0,0.00022387,6]
[366656809,1750384232821,-460.0,0.00022387,6]
[366656810,1750384232830,-497.54102842,0.00022387,6]
[366656811,1750384232839,-497.89803946,0.00022387,6]
[366656812,1750384232848,-460.0,0.00022387,6]
[366656813,1750384232857,-488.4618935,0.00022387,6]
[366656814,1750384232866,-495.37928777,0.00022387,6]
[366656815,1750384232876,-487.22509789,0.00022387,6]
[366656816,1750384232885,-383.36528155,0.00022387,6]
[366656817,1750384232894,-613.20311449,0.0002239,2]
[366656818,1750384232903,-213.47708638,0.00022394,2]
[366656819,1750384232913,-2071.5019147,0.00022452,7]
[366656820,1750384232923,-354.80838484,0.00022488,6]
[366656821,1750384232933,-471.27298256,0.00022488,6]
[366656822,1750384232941,-460.0,0.00022488,6]
[366656823,1750384232951,-500.0,0.00022488,2]
[366656824,1750384232960,-189.54717651,0.00022488,2]
[366656825,1750384232969,-359.35610497,0.00022488,2]
[366656826,1750384232979,-500.0,0.00022488,2]
[366656827,1750384232988,-178.35361503,0.00022488,2]
[366656828,1750384232998,-574.78135095,0.00022488,2]
[366656829,1750384233007,-460.0,0.00022488,6]
[366656830,1750384233017,-460.0,0.00022488,6]
[366656831,1750384233027,-362.71654688,0.00022488,6]
[366656832,1750384233037,-12727.52034,0.00022488,2]
[366656833,1750384233047,-1004.67536789,0.00022489,6]
[366656834,1750384233057,-499.87534141,0.00022489,6]
[366656835,1750384233067,-460.0,0.00022489,6]
[366656836,1750384233078,-460.0,0.00022489,6]
[366656837,1750384233088,-2278.77,0.00022489,6]
[366656838,1750384233097,-492.60506728,0.00022489,6]
[366656839,1750384233108,-498.41822805,0.00022489,6]
[366656840,1750384233119,-468.95649558,0.00022489,6]
[366656841,1750384233130,-468.80941042,0.00022489,6]
[366656842,1750384233140,-499.11995794,0.00022489,6]
[366656843,1750384233150,-372.70487336,0.00022489,6]
[366656844,1750384233160,-494.28477793,0.00022489,6]
[366656845,1750384233170,-460.0,0.00022489,6]
[366656846,1750384233179,-479.79137251,0.00022489,6]
[366656847,1750384233190,-1779.40751614,0.0002249,2]
[366656848,1750384233200,-171.49467993,0.0002249,2]
[366656849,1750384233210,-3000.0,0.000225,2]
[366656850,1750384233220,-650.22,0.00022507,6]
[366656851,1750384233230,-460.0,0.00022507,6]
[366656852,1750384233240,-526.85674301,0.00022507,6]
[366656853,1750384233250,-460.0,0.00022507,6]
[366656854,1750384233260,-460.0,0.00022507,6]
[366656855,1750384233271,-414.51404389,0.00022507,6]
[366656856,1750384233280,-460.0,0.00022507,6]
[366656857,1750384233291,-498.81374891,0.00022507,6]
[366656858,1750384233300,-460.0,0.00022507,6]
[366656859,1750384233311,-460.0,0.00022507,6]
[366656860,1750384233322,-151.87727558,0.00022507,6]
[366656861,1750384233332,-460.0,0.00022507,6]
[366656862,1750384233343,-460.0,0.00022507,6]
[366656863,1750384233352,-3000.0,0.0002251,2]
[366656864,1750384233363,-3000.0,0.0002252,2]
[366656865,1750384233373,-3000.0,0.0002253,2]
[366656866,1750384233383,-3000.0,0.0002254,2]
[366656867,1750384233393,-3153.385391,0.0002255,2]
[366656868,1750384233403,-2071.5019147,0.0002259,7]
[366656869,1750384233414,-460.0,0.00022642,6]
[366656870,1750384233424,-575.5,0.00022652,6]
[366656871,1750384233434,-460.0,0.00022661,6]
[366656872,1750384233444,-460.0,0.00022661,6]
[366656873,1750384233455,-460.0,0.00022661,6]
[366656874,1750384233466,-460.0,0.00022661,6]
[366656875,1750384233476,-460.0,0.00022661,6]
[366656876,1750384233486,-500.0,0.00022664,2]
[366656877,1750384233496,-160.0,0.00022682,2]
[366656878,1750384233506,-2071.5019147,0.00022728,7]
[366656879,1750384233516,-460.0,0.00022762,6]
[366656880,1750384233528,-460.0,0.00022762,6]
[366656881,1750384233539,-460.0,0.00022762,6]
[366656882,1750384233548,-460.0,0.00022763,6]
[366656883,1750384233559,-489.18265279,0.00022763,6]
[366656884,1750384233569,-2278.77,0.00022763,6]
[366656885,1750384233580,-460.0,0.00022763,6]
[366656886,1750384233591,-613.20311449,0.0002277,2]
[366656887,1750384233603,-825.83,0.00022771,10]
[366656888,1750384233615,-650.22,0.00022781,6]
[366656889,1750384233624,-460.0,0.00022781,6]
[366656890,1750384233634,-460.0,0.00022781,6]
[366656891,1750384233643,-474.51777287,0.00022781,6]
[366656892,1750384233653,-460.0,0.00022781,6]
[366656893,1750384233663,-485.65455036,0.00022781,6]
[366656894,1750384233673,-460.0,0.00022781,6]
[366656895,1750384233684,-460.0,0.00022781,6]
[366656896,1750384233694,-460.0,0.00022781,6]
[366656897,1750384233717,-18562.54312574,0.000228,2]
[366656898,1750384233729,-10410.54105334,0.000228,2]
[366656899,1750384233739,-1000.0,0.000228,2]
[366656900,1750384233750,-1000.0,0.000228,3]
[366656901,1750384233760,-2071.5019147,0.00022866,8]
[366656902,1750384233770,-460.0,0.00022916,6]
[366656903,1750384233780,-152.781244,0.00022917,7]
[366656904,1750384233790,-151.0,0.00022917,7]
[366656905,1750384233800,-151.0,0.00022917,7]
[366656906,1750384233810,-158.043738,0.00022917,7]
[366656907,1750384233820,-151.0,0.00022917,7]
[366656908,1750384233830,-151.0,0.00022917,7]
[366656909,1750384233840,-151.0,0.00022917,7]
[366656910,1750384233850,-575.5,0.00022926,6]
[366656911,1750384233860,-460.0,0.00022935,6]
[366656912,1750384233871,-460.0,0.00022935,6]
[366656913,1750384233881,-460.0,0.00022935,6]
[366656914,1750384233892,-460.0,0.00022935,6]
[366656915,1750384233903,-460.0,0.00022935,6]
[366656916,1750384233913,-2071.5019147,0.00023003,8]
[366656917,1750384233924,-151.0,0.00023004,7]
[366656918,1750384233934,-151.0,0.00023004,7]
[366656919,1750384233944,-460.0,0.00023036,6]
[366656920,1750384233954,-460.0,0.00023036,6]
[366656921,1750384233964,-460.0,0.00023036,6]
[366656922,1750384233974,-460.0,0.00023037,6]
[366656923,1750384233984,-2278.77,0.00023037,6]
[366656924,1750384233994,-460.0,0.00023037,6]
[366656925,1750384234011,-650.22,0.00023055,6]
[366656926,1750384234021,-540.30461282,0.00023055,6]
[366656927,1750384234032,-460.0,0.00023055,6]
[366656928,1750384234042,-460.0,0.00023055,6]
[366656929,1750384234052,-460.0,0.00023055,6]
[366656930,1750384234062,-460.0,0.00023055,6]
[366656931,1750384234073,-460.0,0.00023055,6]
[366656932,1750384234083,-158.136873,0.00023077,7]
[366656933,1750384234093,-151.0,0.00023077,7]
[366656934,1750384234102,-2071.5019147,0.00023141,8]
[366656935,1750384234113,-613.20311449,0.00023149,2]
[366656936,1750384234124,-507.44896964,0.0002319,2]
[366656937,1750384234135,-460.0,0.0002319,6]
[366656938,1750384234145,-151.0,0.0002319,7]
[366656939,1750384234155,-151.0,0.0002319,7]
[366656940,1750384234165,-151.0,0.0002319,7]
[366656941,1750384234176,-151.0,0.0002319,7]
[366656942,1750384234186,-151.0,0.0002319,7]
[366656943,1750384234197,-772.278243,0.00023191,7]
[366656944,1750384234207,-772.278243,0.00023191,7]
[366656945,1750384234217,-151.0,0.00023191,7]
[366656946,1750384234228,-151.0,0.00023191,7]
[366656947,1750384234238,-151.0,0.00023191,7]
[366656948,1750384234248,-151.0,0.00023191,7]
[366656949,1750384234258,-151.0,0.00023191,7]
[366656950,1750384234268,-151.0,0.00023191,7]
[366656951,1750384234278,-151.0,0.00023191,7]
[366656952,1750384234288,-575.5,0.000232,6]
[366656953,1750384234298,-460.0,0.00023209,6]
[366656954,1750384234308,-460.0,0.00023209,6]
[366656955,1750384234322,-460.0,0.00023209,6]
[366656956,1750384234332,-542.20603155,0.00023209,6]
[366656957,1750384234342,-242.7373702,0.00023209,6]
[366656958,1750384234352,-640.558168,0.00023209,2]
[366656959,1750384234362,-500.0,0.00023209,2]
[366656960,1750384234374,-500.0,0.00023209,2]
[366656961,1750384234384,-500.0,0.00023209,2]
[366656962,1750384234394,-500.0,0.00023209,2]
[366656963,1750384234404,-500.0,0.00023209,2]
[366656964,1750384234414,-500.0,0.00023209,2]
[366656965,1750384234424,-500.0,0.00023209,2]
[366656966,1750384234434,-500.0,0.00023209,2]
[366656967,1750384234444,-500.0,0.00023209,2]
[366656968,1750384234454,-500.0,0.00023209,2]
[366656969,1750384234464,-340.43309579,0.00023209,2]
[366656970,1750384234474,-500.0,0.00023209,2]
[366656971,1750384234484,-500.0,0.00023209,2]
[366656972,1750384234495,-500.0,0.00023209,2]
[366656973,1750384234505,-500.0,0.00023209,2]
[366656974,1750384234515,-500.0,0.00023209,2]
[366656975,1750384234526,-772.278243,0.0002321,7]
[366656976,1750384234538,-772.278243,0.0002321,7]
[366656977,1750384234548,-189.446318,0.0002321,7]
[366656978,1750384234557,-1014.63186876,0.00023212,2]
[366656979,1750384234567,-463.01,0.00023253,3]
[366656980,1750384234577,-207.4,0.00023263,2]
[366656981,1750384234587,-500.0,0.00023263,2]
[366656982,1750384234596,-500.0,0.00023263,2]
[366656983,1750384234607,-500.0,0.00023263,2]
[366656984,1750384234616,-322.36914931,0.00023263,2]
[366656985,1750384234626,-2071.5019147,0.00023279,8]
[366656986,1750384234635,-151.0,0.00023288,6]
[366656987,1750384234644,-417.03,0.000233,2]
[366656988,1750384234654,-720.23,0.00023301,3]
[366656989,1750384234664,-460.0,0.0002331,6]
[366656990,1750384234673,-460.0,0.0002331,6]
[366656991,1750384234683,-460.0,0.0002331,6]
[366656992,1750384234693,-460.0,0.00023311,6]
[366656993,1750384234703,-2278.77,0.00023311,6]
[366656994,1750384234712,-460.0,0.00023311,6]
[366656995,1750384234721,-151.77286426,0.00023315,6]
[366656996,1750384234731,-694.53,0.00023319,3]
[366656997,1750384234740,-650.22,0.00023329,6]
[366656998,1750384234750,-403.00086031,0.00023329,6]
[366657000,1750384238002,-56.99913969,0.00023329,6]
[366657001,1750384238012,-308.16863028,0.00023329,6]
[366657002,1750384238023,-151.83136972,0.00023329,6]
[366657003,1750384238033,-151.0,0.00023329,7]
[366657005,1750384238043,-206.43217396,0.00023329,6]
[366657105,1750384240382,-460.0,0.00022488,6]
[366657106,1750384240394,-460.0,0.00022762,6]
[366657107,1750384240404,-253.56782604,0.00023329,6]
[366657108,1750384240414,-460.0,0.00023329,6]
[366657109,1750384240424,-460.0,0.00023329,6]
[366657110,1750384240435,-231.5,0.0002334,3]
[366657111,1750384240445,-2071.5019147,0.00023417,9]
[366657112,1750384240455,-514.81817148,0.00023461,2]
[366657113,1750384240464,-460.0,0.00023464,6]
[366657114,1750384240474,-151.0,0.00023464,7]
[366657115,1750384240484,-151.0,0.00023464,7]
[366657116,1750384240494,-151.0,0.00023464,7]
[366657117,1750384240504,-151.0,0.00023464,7]
[366657118,1750384240513,-151.0,0.00023464,7]
[366657119,1750384240525,-575.5,0.00023474,6]
[366657120,1750384240536,-460.0,0.00023483,6]
[366657121,1750384240545,-460.0,0.00023483,6]
[366657122,1750384240555,-151.0,0.00023521,7]
[366657123,1750384240565,-151.0,0.00023521,7]
[366657125,1750384240587,-613.20311449,0.00023529,2]
[366657128,1750384240599,-2038.61873028,0.00023555,9]
[366657232,1750384246165,-460.0,0.00022368,6]
[366657234,1750384246175,-460.0,0.00022488,6]
[366657235,1750384246188,-460.0,0.00022762,6]
[366657236,1750384246197,-5000.0,0.00022806,2]
[366657237,1750384246207,-460.0,0.00023036,6]
[366657238,1750384246218,-460.0,0.00023036,6]
[366657239,1750384246228,-460.0,0.0002331,6]
[366657240,1750384246238,-460.0,0.0002331,6]
[366657241,1750384246248,-32.88318442,0.00023555,9]
[366657242,1750384246259,-200.0,0.00023561,6]
[366657243,1750384246268,-200.0,0.00023561,6]
[366657244,1750384246278,-200.0,0.00023561,6]
[366657245,1750384246288,-200.0,0.00023561,6]
[366657246,1750384246297,-200.0,0.00023561,6]
[366657247,1750384246307,-772.278243,0.00023561,7]
[366657248,1750384246317,-772.278243,0.00023561,7]
[366657249,1750384246326,-151.0,0.00023561,7]
[366657250,1750384246336,-151.0,0.00023561,7]
[366657251,1750384246346,-500.0,0.00023573,2]
[366657252,1750384246355,-500.0,0.00023573,2]
[366657253,1750384246365,-500.0,0.00023573,2]
[366657254,1750384246375,-542.05037973,0.00023573,2]
[366657255,1750384246385,-426.89457808,0.00023573,2]
[366657257,1750384751174,1000646.37828647,0.000202,2]
[366657259,1750385154473,163.085034,0.00013699,2]
[366657261,1750385165164,5000.0,0.000202,2]
[366657262,1750385165758,4073.0,0.000202,2]
[366657264,1750385267632,150.0,0.000189,2]
[366657265,1750385319491,3801.02,0.000202,2]
[366657328,1750385432431,-306.29832816,0.0002181,3]
[366657330,1750385432442,-865.55,0.00021825,2]
[366657332,1750385432453,-306.29832816,0.00021839,6]
[366657334,1750385432464,-500.0,0.00021868,2]
[366657336,1750385432475,-306.29832816,0.00021868,3]
[366657338,1750385432485,-306.29832816,0.00021898,13]
[366657340,1750385432494,-306.29832816,0.00021927,12]
[366657342,1750385432505,-306.29832816,0.00021956,12]
[366657343,1750385432516,-306.29832816,0.00021985,3]
[366657346,1750385432539,-177.0,0.00022,2]
[366657347,1750385432549,-306.29832816,0.00022014,14]
[366657349,1750385432558,-306.29832816,0.00022044,3]
[366657351,1750385432569,-306.29832816,0.00022073,6]
[366657353,1750385432578,-306.29832816,0.00022102,11]
[366657355,1750385432588,-306.29832816,0.00022131,10]
[366657357,1750385432598,-306.29832816,0.00022161,13]
[366657359,1750385432607,-306.29832816,0.0002219,12]
[366657361,1750385432618,-150.0,0.000222,2]
[366657363,1750385432628,-306.29832816,0.00022219,6]
[366657365,1750385432638,-306.29832816,0.00022248,13]
[366657367,1750385432647,-500.0,0.0002225,2]
[366657369,1750385432657,-347.0,0.00022277,2]
[366657371,1750385432667,-306.29832816,0.00022278,6]
[366657373,1750385432677,-300.0,0.00022278,2]
[366657375,1750385432688,-300.0,0.00022278,2]
[366657377,1750385432698,-306.29832816,0.00022307,7]
[366657378,1750385432707,-306.29832816,0.00022336,13]
[366657380,1750385432717,-306.29832816,0.00022365,13]
[366657382,1750385432727,-446.47295935,0.00022386,6]
[366657387,1750385432763,-13.52704065,0.00022386,6]
[366657389,1750385432773,-306.29832816,0.00022394,10]
[366657396,1750385432920,-306.29832816,0.00022424,4]
[366657398,1750385432938,-306.29832816,0.00022453,11]
[366657400,1750385432948,-306.29832816,0.00022482,4]
[366657401,1750385432958,-460.0,0.00022488,6]
[366657402,1750385432968,-473.76444124,0.00022489,6]
[366657404,1750385432978,-163.085034,0.00022505,2]
[366657405,1750385432988,-160.0,0.00022506,2]
[366657407,1750385432997,-306.29832816,0.00022511,12]
[366657409,1750385433007,-505.56068395,0.00022522,2]
[366657411,1750385433017,-523.51996164,0.0002253,2]
[366657413,1750385433027,-306.29832816,0.00022541,10]
[366657415,1750385433038,-1718.59171706,0.00022554,2]
[366657417,1750385433048,-207.4,0.00022554,2]
[366657419,1750385433059,-501.82433281,0.00022569,2]
[366657421,1750385433069,-306.29832816,0.0002257,11]
[366657423,1750385433079,-510.31824481,0.0002258,2]
[366657425,1750385433090,-306.29832816,0.00022599,3]
[366657427,1750385433100,-503.57054285,0.00022625,2]
[366657429,1750385433113,-503.96418681,0.00022625,2]
[366657431,1750385433124,-510.2174352,0.00022625,2]
[366657433,1750385433134,-306.29832816,0.00022628,12]
[366657435,1750385433144,-505.03320935,0.00022629,2]
[366657437,1750385433154,-460.0,0.0002264,6]
[366657439,1750385433164,-460.0,0.0002264,6]
[366657441,1750385433174,-460.0,0.0002264,6]
[366657443,1750385433184,-460.0,0.00022641,6]
[366657445,1750385433193,-306.29832816,0.00022658,14]
[366657447,1750385433203,-460.0,0.00022659,6]
[366657449,1750385433213,-460.0,0.00022659,6]
[366657450,1750385433223,-356.09837649,0.0002266,6]
[366657452,1750385433233,-504.97645255,0.0002266,2]
[366657454,1750385433243,-328.2869894,0.00022661,2]
[366657456,1750385433253,-460.0,0.00022679,6]
[366657458,1750385433263,-1898.97,0.00022679,6]
[366657460,1750385433273,-541.85,0.00022679,6]
[366657462,1750385433283,-242.73718824,0.00022679,6]
[366657464,1750385433294,-306.29832816,0.00022687,7]
[366657466,1750385433303,-306.29832816,0.00022716,5]
[366657468,1750385433314,-213.47708638,0.00022728,2]
[366657470,1750385433324,-160.0,0.00022728,2]
[366657472,1750385433334,-160.0,0.00022728,2]
[366657474,1750385433343,-424.78309573,0.00022728,2]
[366657476,1750385433355,-230.0259007,0.00022728,2]
[366657477,1750385433365,-845.93775772,0.00022728,2]
[366657479,1750385433375,-836.1357872,0.00022728,2]
[366657481,1750385433385,-306.29832816,0.00022745,12]
[366657483,1750385433398,-160.0,0.00022757,2]
[366657485,1750385433408,-160.0,0.00022757,2]
[366657487,1750385433417,-160.0,0.00022757,2]
[366657489,1750385433429,-460.0,0.00022761,6]
[366657491,1750385433438,-460.0,0.00022761,6]
[366657493,1750385433448,-460.0,0.00022762,6]
[366657495,1750385433458,-306.29832816,0.00022774,6]
[366657497,1750385433468,-965.34351495,0.00022798,2]
[366657499,1750385433478,-51.11514752,0.00022802,7]
[366657703,1750385440361,-460.0,0.0002264,6]
[366657705,1750385440371,-99.88485248,0.00022802,7]
[366657707,1750385440381,-306.29832816,0.00022804,14]
[366657709,1750385440391,-306.29832816,0.00022833,5]
[366657712,1750385440403,-306.29832816,0.00022862,14]
[366657714,1750385440413,-200.74914707,0.00022883,2]
[366657758,1750385568558,150.0,0.000189,2]
[366657759,1750385626908,2000.0,0.00024,120]
[366657761,1750385659257,1000.0,0.000244,120]
[366657766,1750385712365,1265.0,0.000246,120]
[366657782,1750386396122,-4474.42304884,0.00020533,2]
[366657783,1750386396651,-800.0,0.0002084,2]
[366657784,1750386396676,-198.0,0.00021023,2]
[366657785,1750386396702,-198.0,0.00021075,2]
[366657786,1750386396726,-256.2088349,0.00021578,2]
[366657787,1750386396748,-168.0,0.00021581,2]
[366657788,1750386396772,-168.0,0.0002159,2]
[366657789,1750386396793,-232.32089172,0.0002181,12]
[366657790,1750386396818,-868.53,0.00021833,2]
[366657791,1750386396851,-1463.12389234,0.000219,6]
[366657792,1750386396877,-168.0,0.00022008,2]
[366657793,1750386396898,-300.0,0.00022027,2]
[366657794,1750386396920,-635.08195944,0.00022027,2]
[366657795,1750386396941,-190.7266764,0.00022028,2]
[366657796,1750386396963,-300.0,0.00022036,2]
[366657797,1750386396993,-1463.12389226,0.00022038,6]
[366657798,1750386397014,-213.51557418,0.00022052,2]